bitfinex/quotes_SOLUSD_20250814
["timestamp","ask_amount","ask_price","bid_price","bid_amount"]
[1755177656734,0.66,193.13,192.98,1.19818841]
[1755177656937,3.73766444,193.12,192.99,24.26553164]
[1755177657135,26.0,193.14,193.0,0.51813471]
[1755177657303,18.12532366,193.1,192.98,54.7]
[1755177657625,0.66,193.09,192.98,54.7]
[1755177658005,3.75639286,193.08,192.98,54.7]
[1755177658206,0.66,193.07,192.98,54.7]
[1755177658437,0.66,193.07,192.97,0.14216157]
[1755177658635,3.74586932,193.06,192.92,0.14216157]
[1755177658840,0.66,193.05,192.92,0.14216157]
[1755177658999,3.74586932,193.04,192.92,0.14216157]
[1755177659204,3.74586932,193.04,192.87,55.34]
[1755177659205,0.66,193.03,192.87,54.66]
[1755177659418,44.03916895,193.01,192.87,54.66]
[1755177659629,26.0,192.98,192.87,54.66]
[1755177660012,26.0,192.98,192.88,24.26553164]
[1755177660212,26.0,192.98,192.9,24.26553164]
[1755177660404,12.95068332,193.05,192.97,24.26553164]
[1755177660599,25.89331952,193.1,192.91,1.21837644]
[1755177660600,12.94799021,193.09,193.02,24.26553164]
[1755177660829,5.1786639,193.1,193.03,24.78358582]
[1755177661126,5.31975295,193.14,193.08,24.26553164]
[1755177661302,5.31975295,193.14,192.99,0.7]
[1755177661500,0.69,193.13,193.0,69.74621557]
[1755177661698,0.69,193.13,193.0,39.37174721]
[1755177662301,18.26373141,193.14,193.05,24.26553164]
[1755177662510,18.26373141,193.14,192.99,54.64]
[1755177662511,18.26373141,193.14,193.06,39.88972089]
[1755177662927,18.26373141,193.14,193.08,39.37174721]
[1755177663127,26.0,193.11,193.08,15.6241356]
[1755177663432,5.1786639,193.1,193.08,39.88966724]
[1755177663610,5.17785947,193.13,193.09,24.96553164]
[1755177663813,5.31977089,193.14,193.13,15.10621557]
[1755177664014,12.94001095,193.2,193.13,39.88953315]
[1755177664215,5.31841292,193.19,193.14,54.6]
[1755177664564,0.14216157,193.17,193.03,0.03]
[1755177664828,26.14216157,193.15,193.03,69.71621557]
[1755177665126,0.14216157,193.15,193.03,69.71621557]
[1755177665331,0.14216157,193.15,193.08,39.37174721]
[1755177665537,5.17759138,193.14,193.11,24.26553164]
[1755177665741,5.17759138,193.14,193.11,15.10621557]
[1755177666041,5.17759138,193.14,193.11,39.88958678]
[1755177666213,5.31975295,193.14,193.13,24.26553164]
[1755177666414,0.14216157,193.14,193.13,40.58953315]
[1755177666738,0.14216157,193.14,193.13,15.62400151]
[1755177666901,0.14216157,193.14,193.13,54.54]
[1755177667107,0.14216157,193.14,193.13,69.64621557]
[1755177667540,5.31975295,193.14,193.13,69.64621557]
[1755177667907,0.14216157,193.14,193.13,94.42953315]
[1755177668215,0.14216157,193.14,193.13,95.12953315]
[1755177668746,0.14216157,193.14,193.13,70.86400151]
[1755177668951,5.31975295,193.14,193.13,70.16400151]
[1755177669117,0.14216157,193.14,193.13,70.16400151]
[1755177669320,5.31975295,193.14,193.13,54.54]
[1755177669627,0.14216157,193.14,193.13,70.34621557]
[1755177669812,0.06,193.19,193.14,15.10621557]
[1755177670011,0.06,193.19,193.18,15.10621557]
[1755177670215,5.23625135,193.19,193.18,15.6238675]
[1755177670417,5.23625135,193.19,193.11,0.7]
[1755177670617,5.23625135,193.19,193.13,15.10621557]
[1755177670842,26.0,193.16,193.05,0.7]
[1755177671047,26.0,193.16,193.1,24.26553164]
[1755177671219,26.0,193.16,193.12,15.10621557]
[1755177671544,26.0,193.13,193.12,69.56621557]
[1755177671917,31.17732332,193.15,193.12,69.56621557]
[1755177672136,31.17732332,193.15,193.12,93.83174721]
[1755177672452,0.20216157,193.19,193.15,15.10621557]
[1755177672619,0.06,193.21,193.2,15.10621557]
[1755177672819,0.06,193.21,193.2,95.02934555]
[1755177673147,0.06,193.21,193.2,70.06381391]
[1755177673517,0.06,193.21,193.2,69.54621557]
[1755177673741,0.06,193.21,193.2,54.44]
[1755177673939,0.06,193.21,193.17,15.10621557]
[1755177673940,3.83830723,193.21,193.17,15.10621557]
[1755177674432,0.06,193.33,193.24,25.10621557]
[1755177674617,0.06,193.33,193.2,48.53106328]
[1755177674618,0.06,193.33,193.3,39.37174721]
[1755177674817,0.06,193.33,193.3,94.28907778]
[1755177676116,0.06,193.33,193.32,39.37174721]
[1755177676322,0.06,193.35,193.33,10.0]
[1755177676536,0.06,193.35,193.34,91.45897075]
[1755177676725,5.16685471,193.55,193.39,51.10621557]
[1755177676925,0.69,193.56,193.39,51.10621557]
[1755177676926,0.69,193.56,193.43,56.67621557]
[1755177677126,0.06,193.57,193.43,145.81873009]
[1755177677344,0.06,193.57,193.43,121.03621557]
[1755177677530,0.06,193.57,193.44,25.10621557]
[1755177677732,0.06,193.57,193.5,39.37174721]
[1755177678021,0.06,193.57,193.5,119.28174721]
[1755177678322,0.06,193.57,193.53,41.10621557]
[1755177678539,0.06,193.57,193.53,65.88846296]
[1755177679021,0.31324235,193.54,193.53,65.88846296]
[1755177679518,0.06,193.57,193.56,51.10621557]
[1755177679724,0.06,193.57,193.56,135.35473955]
[1755177679935,0.06,193.57,193.56,150.40810389]
[1755177680246,0.06,193.59,193.56,150.40810389]
[1755177680247,0.06,193.59,193.58,15.10621557]
[1755177680417,0.06,193.59,193.58,65.4583295]
[1755177680620,0.14216157,193.67,193.66,26.0]
[1755177680821,0.14216157,193.67,193.66,145.7181161]
[1755177681014,5.15961901,193.82,193.71,25.10621557]
[1755177681243,5.15961901,193.82,193.77,24.26553164]
[1755177681425,0.21324235,193.79,193.78,54.26]
[1755177681626,0.21324235,193.79,193.66,38.896674]
[1755177681627,0.21324235,193.67,193.66,15.10621557]
[1755177681845,0.21324235,193.67,193.66,94.1081161]
[1755177682322,0.69,193.83,193.71,15.10621557]
[1755177682534,18.74721607,193.83,193.74,24.26553164]
[1755177682734,26.0,193.8,193.75,54.2]
[1755177682938,0.69,193.79,193.61,15.482672]
[1755177683142,0.14216157,193.78,193.69,39.37174721]
[1755177683383,0.14216157,193.76,193.7,0.25482842]
[1755177683583,0.14216157,193.74,193.58,15.484271]
[1755177683874,0.14216157,193.69,193.55,24.26553164]
[1755177684066,0.14216157,193.69,193.54,37.2]
[1755177684067,0.14216157,193.67,193.58,24.26553164]
[1755177684244,0.14216157,193.67,193.63,24.26553164]
[1755177684582,0.21324235,193.64,193.54,37.2]
[1755177684741,0.21324235,193.64,193.59,24.26553164]
[1755177684943,0.14216157,193.63,193.61,24.26553164]
[1755177685255,0.14216157,193.61,193.59,54.12]
[1755177685571,0.83216157,193.61,193.59,54.12]
[1755177685884,0.14216157,193.59,193.58,15.10621557]
[1755177686071,0.83216157,193.59,193.57,54.12]
[1755177686249,0.83216157,193.58,193.57,54.12]
[1755177686451,0.83216157,193.58,193.47,24.26553164]
[1755177686650,0.83216157,193.58,193.49,15.10621557]
[1755177686956,26.83216157,193.58,193.48,54.1]
[1755177687163,26.14216157,193.58,193.48,54.1]
[1755177687377,0.14216157,193.56,193.48,54.1]
[1755177687676,0.14216157,193.54,193.48,54.1]
[1755177687884,26.14216157,193.5,193.49,15.10621557]
[1755177688082,0.14216157,193.49,193.39,37.18]
[1755177688251,0.14216157,193.49,193.4,54.08]
[1755177688653,0.14216157,193.47,193.4,54.08]
[1755177688953,0.14216157,193.45,193.33,24.26553164]
[1755177689166,0.14216157,193.43,193.33,54.06]
[1755177689370,0.14216157,193.41,193.37,24.26553164]
[1755177689560,26.0,193.5,193.41,15.10621557]
[1755177689561,0.14216157,193.47,193.41,15.10621557]
[1755177689863,0.14216157,193.47,193.38,54.04]
[1755177690067,0.83216157,193.47,193.42,15.10621557]
[1755177690263,0.14216157,193.47,193.45,15.10621557]
[1755177690660,0.14216157,193.47,193.46,15.10621557]
[1755177691275,0.14216157,193.47,193.46,93.41174721]
[1755177691481,0.14216157,193.47,193.46,15.10621557]
[1755177691668,0.14216157,193.47,193.46,39.37174721]
[1755177691870,5.30958612,193.52,193.47,15.10621557]
[1755177692208,5.30958612,193.52,193.47,39.37174721]
[1755177692357,5.30958612,193.52,193.49,15.10621557]
[1755177692563,26.14216157,193.49,193.41,0.69]
[1755177692784,26.14216157,193.49,193.41,93.39174721]
[1755177693107,26.14216157,193.49,193.43,15.10621557]
[1755177693463,26.14216157,193.49,193.42,15.10621557]
[1755177693784,0.14216157,193.47,193.42,15.10621557]
[1755177693984,26.0,193.44,193.42,15.10621557]
[1755177694159,0.14216157,193.43,193.42,15.10621557]
[1755177694613,0.14216157,193.43,193.42,39.37174721]
[1755177695164,0.14216157,193.43,193.42,40.06174721]
[1755177696393,0.14216157,193.43,193.42,39.37174721]
[1755177696594,0.14216157,193.43,193.42,93.33174721]
[1755177697793,0.14216157,193.43,193.42,94.02174721]
[1755177698291,18.23095168,193.49,193.42,69.71621557]
[1755177698509,0.14216157,193.47,193.42,69.02621557]
[1755177698712,0.14216157,193.45,193.38,53.92]
[1755177698915,0.14216157,193.45,193.35,53.9]
[1755177699084,0.14216157,193.43,193.3,0.03]
[1755177699284,0.14216157,193.41,193.3,0.03]
[1755177699505,0.14216157,193.39,193.3,53.93]
[1755177699713,0.14216157,193.37,193.3,0.03]
[1755177699889,0.14216157,193.32,193.28,0.03]
[1755177700613,0.14216157,193.32,193.31,39.37174721]
[1755177700816,26.0,193.37,193.32,15.10621557]
[1755177701013,26.0,193.37,193.36,15.10621557]
[1755177701217,31.17153431,193.37,193.35,15.10621557]
[1755177701420,31.17153431,193.37,193.32,15.10621557]
[1755177701421,44.10011682,193.37,193.32,15.10621557]
[1755177701592,0.7,193.36,193.25,53.86]
[1755177701921,26.0,193.32,193.26,53.89]
[1755177702126,26.0,193.32,193.26,0.03]
[1755177702299,0.7,193.31,193.26,0.03]
[1755177702926,0.14216157,193.3,193.26,0.03]
[1755177703227,0.84216157,193.29,193.26,0.03]
[1755177703517,0.7,193.28,193.26,0.03]
[1755177703695,0.7,193.27,193.24,0.03]
[1755177703888,5.17464424,193.25,193.24,0.03]
[1755177704214,5.17464424,193.25,193.15,53.84]
[1755177704215,26.0,193.22,193.15,53.84]
[1755177704415,26.0,193.22,193.16,24.26553164]
[1755177704617,26.0,193.22,193.16,15.10621557]
[1755177704917,26.0,193.22,193.16,39.37174721]
[1755177705120,26.0,193.22,193.15,53.84]
[1755177705286,26.0,193.22,193.19,24.26553164]
[1755177705491,26.0,193.22,193.21,39.37174721]
[1755177705816,26.0,193.22,193.21,15.10621557]
[1755177706030,31.1753832,193.23,193.18,24.26553164]
[1755177706336,31.1753832,193.23,193.19,15.10621557]
[1755177706620,5.17384105,193.28,193.22,15.10621557]
[1755177706828,26.0,193.27,193.22,24.26553164]
[1755177707000,26.0,193.27,193.19,24.26553164]
[1755177707001,26.0,193.25,193.19,24.26553164]
[1755177707327,26.0,193.25,193.16,24.26553164]
[1755177707635,26.0,193.25,193.17,15.10621557]
[1755177707921,18.11312942,193.23,193.16,0.03]
[1755177708092,0.7,193.22,193.16,0.03]
[1755177708297,26.0,193.2,193.18,0.03]
[1755177708504,5.17517983,193.23,193.2,15.10621557]
[1755177708815,13.6355788,193.27,193.22,15.10621557]
[1755177708816,44.11031769,193.26,193.22,15.10621557]
[1755177709133,44.81031769,193.26,193.18,33.64024547]
[1755177709319,0.7,193.25,193.18,15.13621557]
[1755177709511,0.7,193.25,193.19,15.10621557]
[1755177710027,26.0,193.26,193.23,15.10621557]
[1755177710228,0.14216157,193.28,193.26,15.10621557]
[1755177710736,0.14216157,193.28,193.26,18.5040299]
[1755177710915,0.14216157,193.28,193.27,33.61024547]
[1755177711239,0.14216157,193.28,193.27,15.10621557]
[1755177711609,0.14216157,193.28,193.27,34.30024547]
[1755177711808,5.17116558,193.38,193.27,34.30024547]
[1755177712134,26.0,193.39,193.29,15.10621557]
[1755177712311,0.7,193.38,193.24,15.10621557]
[1755177712512,0.7,193.38,193.27,15.10621557]
[1755177713460,0.7,193.38,193.27,33.61024547]
[1755177713623,0.7,193.38,193.27,15.10621557]
[1755177713950,26.0,193.33,193.27,15.10621557]
[1755177714152,0.14216157,193.32,193.27,15.10621557]
[1755177714656,0.14216157,193.3,193.27,15.10621557]
[1755177714857,0.7,193.29,193.22,53.68]
[1755177715023,0.7,193.29,193.23,15.10621557]
[1755177715652,0.7,193.29,193.22,53.68]
[1755177715951,0.7,193.29,193.1,20.84328782]
[1755177715952,26.0,193.25,193.16,53.69]
[1755177716155,0.7,193.24,193.16,53.69]
[1755177716535,0.7,193.24,193.16,0.03]
[1755177716840,0.7,193.24,193.18,1e-08]
[1755177717040,0.64689747,193.23,193.16,1e-08]
[1755177717257,0.7,193.22,193.16,1e-08]
[1755177717624,0.7,193.22,193.12,0.14216157]
[1755177717625,26.0,193.2,193.12,0.14216157]
[1755177717820,0.7,193.19,193.12,0.14216157]
[1755177718021,26.0,193.15,193.12,0.14216157]
[1755177718251,26.7,193.15,193.12,0.14216157]
[1755177718432,0.7,193.14,193.12,0.14216157]
[1755177718631,0.7,193.13,193.07,0.14216157]
[1755177719953,26.0,193.09,193.07,0.14216157]
[1755177720364,0.66,193.24,193.09,0.14216157]
[1755177720544,5.17410875,193.27,193.12,0.14216157]
[1755177720865,18.76938064,193.27,193.21,15.10621557]
[1755177721079,5.17410875,193.27,193.23,15.10621557]
[1755177721266,5.17410875,193.27,193.24,15.10621557]
[1755177721472,26.0,193.24,193.15,15.10621557]
[1755177721850,26.0,193.24,193.16,15.10621557]
[1755177722167,26.0,193.2,193.16,15.10621557]
[1755177722679,26.66,193.2,193.12,0.14216157]
[1755177722852,26.66,193.2,193.12,15.24837714]
[1755177723045,26.66,193.2,193.12,0.14216157]
[1755177723286,26.66,193.2,193.07,0.14216157]
[1755177723453,90.84703141,193.19,193.07,0.14216157]
[1755177723652,90.84703141,193.19,193.03,0.03]
[1755177723653,26.0,193.14,193.03,0.03]
[1755177723857,0.66,193.13,193.03,0.03]
[1755177724088,26.0,193.09,193.01,0.03]
[1755177724385,0.66,193.08,193.01,0.03]
[1755177724547,26.0,193.09,193.04,18.5040299]
[1755177724747,26.0,193.09,193.06,15.10621557]
[1755177725263,0.66,193.08,193.01,0.03]
[1755177726045,26.0,193.1,193.02,15.24837714]
[1755177726672,0.66,193.09,193.02,0.14216157]
[1755177726866,0.66,193.09,193.01,0.03]
[1755177726867,26.0,193.06,193.01,0.03]
[1755177727080,0.66,193.05,192.99,0.03]
[1755177727289,1.30750064,193.05,192.99,0.03]
[1755177727782,26.0,193.03,192.99,1e-08]
[1755177727957,0.66,193.02,192.99,1e-08]
[1755177728151,5.1810787,193.01,192.99,1e-08]
[1755177728462,26.0,193.03,192.99,15.10621558]
[1755177728667,26.0,193.03,193.01,0.03]
[1755177729494,5.1789321,193.09,193.01,0.17216157]
[1755177729657,5.1789321,193.09,193.03,15.24837714]
[1755177730063,26.66,193.08,193.03,0.14216157]
[1755177730296,26.0,193.06,193.03,0.14216157]
[1755177731073,0.66,193.05,193.03,0.14216157]
[1755177731386,26.0,193.06,193.03,0.14216157]
[1755177731756,26.0,193.06,193.01,0.03]
[1755177732279,26.0,193.02,193.01,0.03]
[1755177732866,5.17839573,193.11,193.02,15.24837714]
[1755177733071,18.1244062,193.11,193.02,15.24837714]
[1755177733384,18.1244062,193.11,193.01,19.2340299]
[1755177733385,5.17839573,193.11,193.05,15.10621557]
[1755177733557,26.0,193.08,193.05,15.10621557]
[1755177733755,26.0,193.08,193.04,15.24837714]
[1755177734462,26.0,193.13,193.05,15.10621557]
[1755177734689,5.17571554,193.21,193.1,15.10621557]
[1755177734868,18.11500439,193.21,193.11,15.10621557]
[1755177735060,18.11500439,193.21,193.1,18.5040299]
[1755177735061,26.0,193.18,193.1,15.10621557]
[1755177735482,0.66,193.17,193.08,15.10621557]
[1755177735676,26.0,193.18,193.08,34.31024547]
[1755177735874,0.66,193.17,193.07,0.14216157]
[1755177736085,26.66,193.17,193.07,0.14216157]
[1755177736588,26.0,193.13,193.07,0.14216157]
[1755177737091,44.00496996,193.16,192.85,0.2]
[1755177737092,36.0,193.01,192.85,0.2]
[1755177737297,26.0,192.94,192.86,30.0]
[1755177737589,0.66,192.93,192.85,0.2]
[1755177737792,0.66,192.93,192.85,1e-08]
[1755177737997,26.0,192.89,192.85,1e-08]
[1755177738166,26.66,192.88,192.85,1e-08]
[1755177738368,0.66,192.87,192.85,1e-08]
[1755177738571,5.18403317,192.9,192.85,1e-08]
[1755177738796,26.0,192.87,192.85,1e-08]
[1755177739094,26.0,192.87,192.86,0.84216157]
[1755177739301,26.0,192.92,192.86,0.7]
[1755177739488,5.09698342,192.97,192.91,15.10621557]
[1755177739718,5.09698342,192.97,192.92,0.14216157]
[1755177739901,5.09698342,192.97,192.9,0.14216157]
[1755177739902,5.18227459,192.97,192.9,0.14216157]
[1755177740206,26.0,192.94,192.8,0.7]
[1755177740409,26.0,192.9,192.79,0.2]
[1755177740576,26.0,192.86,192.79,0.2]
[1755177740972,26.66,192.86,192.81,1e-08]
[1755177741282,26.66,192.86,192.79,1e-08]
[1755177741283,26.0,192.84,192.79,1e-08]
[1755177741486,1.30823938,192.83,192.79,1e-08]
[1755177741699,26.0,192.81,192.66,0.7]
[1755177741887,0.66,192.8,192.66,0.7]
[1755177742302,0.66,192.8,192.69,0.14216157]
[1755177742507,25.27969043,192.76,192.69,0.14216157]
[1755177742706,53.28825045,192.75,192.55,24.38263381]
[1755177742876,3.66690102,192.74,192.58,0.7]
[1755177743073,9.09961303,192.74,192.58,0.7]
[1755177743405,13.90569961,192.74,192.58,3.40116091]
[1755177743611,6.75860692,192.77,192.61,3.24139308]
[1755177743812,44.08942371,192.79,192.61,15.10621557]
[1755177743813,53.22,192.73,192.61,15.10621557]
[1755177744005,59.85855533,192.73,192.56,3.36144467]
[1755177744180,6.63855533,192.77,192.62,3.36144467]
[1755177744382,53.2,192.76,192.64,15.10621557]
[1755177744612,18.15823605,192.75,192.64,15.10621557]
[1755177744818,18.15823605,192.75,192.58,5.19244318]
[1755177744819,26.0,192.72,192.65,0.14216157]
[1755177745179,26.0,192.72,192.7,0.21324235]
[1755177745478,25.91947147,192.91,192.72,3.50360624]
[1755177745479,5.18775843,192.77,192.72,3.50360624]
[1755177745688,5.18775843,192.77,192.72,0.14216157]
[1755177745994,26.0,192.74,192.71,0.14216157]
[1755177746517,26.0,192.7,192.62,3.36144467]
[1755177746686,26.0,192.7,192.58,4.06144467]
[1755177746887,26.0,192.7,192.63,3.36144467]
[1755177747098,26.0,192.7,192.59,15.10621557]
[1755177747099,26.0,192.7,192.64,18.46766024]
[1755177747292,26.0,192.7,192.68,15.10621557]
[1755177747492,26.0,192.7,192.64,3.36144467]
[1755177747694,26.0,192.7,192.59,3.36144467]
[1755177748297,26.0,192.68,192.6,0.14216157]
[1755177748629,26.0,192.64,192.62,0.03]
[1755177748812,26.0,192.64,192.52,0.7]
[1755177749113,25.63984523,192.63,192.5,3.36144467]
[1755177749294,24.67943251,192.63,192.5,3.36144467]
[1755177749492,23.83907138,192.63,192.5,3.36144467]
[1755177749686,22.63855548,192.63,192.54,3.36144467]
[1755177749883,44.11688378,192.67,192.48,29.57792514]
[1755177749884,43.51662583,192.67,192.57,3.36144467]
[1755177750087,12.73545087,192.67,192.6,15.10621557]
[1755177750388,11.05472861,192.67,192.65,0.21324235]
[1755177750588,5.15738424,192.68,192.67,18.46766024]
[1755177750792,3.83681675,192.68,192.67,15.24837714]
[1755177750993,11.054728,192.72,192.67,19.78884397]
[1755177751230,25.92688618,192.85,192.75,0.14216157]
[1755177751518,6.63855533,192.82,192.71,15.10621557]
[1755177751705,6.63855533,192.82,192.68,0.03]
[1755177751706,9.77037649,192.84,192.7,3.36144467]
[1755177752019,12.967309,192.79,192.74,18.46766024]
[1755177752232,9.77037649,192.84,192.76,3.36144467]
[1755177752429,9.77037649,192.84,192.8,15.10621557]
[1755177752602,5.18591505,192.83,192.8,18.46766024]
[1755177752792,9.77037649,192.84,192.83,15.10621557]
[1755177752994,9.77037649,192.84,192.83,18.46766024]
[1755177752995,5.18564613,192.84,192.83,18.46766024]
[1755177753204,5.18564613,192.84,192.83,3.36144467]
[1755177753403,5.18430193,192.89,192.84,0.14216157]
[1755177753808,5.18430193,192.89,192.85,19.12766024]
[1755177754128,5.18349574,192.92,192.89,15.10621557]
[1755177754327,5.18188413,192.98,192.91,15.10621557]
[1755177754525,33.24343214,192.98,192.91,18.46766024]
[1755177755110,33.24343214,192.98,192.91,15.10621557]
[1755177755334,26.0,192.95,192.91,15.10621557]
[1755177755628,4.3874998,192.99,192.98,3.36144467]
[1755177755836,4.3874998,192.99,192.98,19.64584865]
[1755177757028,9.56911542,192.99,192.98,15.10621557]
[1755177757602,4.3874998,192.99,192.98,19.64584865]
[1755177757803,0.14216157,193.05,193.03,15.10621557]
[1755177758030,0.14216157,193.05,193.03,15.62426975]
[1755177758206,0.4,193.04,192.97,3.36144467]
[1755177758406,0.4,193.04,192.98,18.46766024]
[1755177758625,0.14216157,193.02,192.93,3.36144467]
[1755177758821,26.0,193.0,192.95,15.10621557]
[1755177759127,26.0,193.0,192.92,3.36144467]
[1755177759128,0.4,192.99,192.92,3.36144467]
[1755177759337,0.4,192.99,192.89,3.36144467]
[1755177759523,26.0,193.0,192.95,3.36144467]
[1755177759722,0.14216157,193.02,192.97,18.46766024]
[1755177759949,0.14216157,193.02,193.0,15.10621557]
[1755177760127,26.0,193.0,192.89,3.36144467]
[1755177760323,26.0,193.0,192.85,0.66]
[1755177760324,26.0,193.0,192.92,3.36144467]
[1755177760546,26.0,193.0,192.97,15.10621557]
[1755177760747,5.18161562,192.99,192.97,15.62443083]
[1755177760947,5.18161562,192.99,192.93,3.36144467]
[1755177761128,5.18161562,192.99,192.92,0.66]
[1755177761129,26.0,192.96,192.87,4.02144467]
[1755177761326,26.0,192.96,192.91,3.36144467]
[1755177761550,26.0,192.96,192.87,0.66]
[1755177761551,0.4,192.95,192.89,3.36144467]
[1755177761753,0.4,192.95,192.84,3.36144467]
[1755177761931,0.4,192.95,192.85,3.36144467]
[1755177762128,29.361445,192.94,192.85,3.36144467]
[1755177762466,0.4,192.93,192.83,0.14216157]
[1755177762763,26.0,192.89,192.78,3.36144467]
[1755177762957,0.4,192.88,192.76,0.66]
[1755177763120,0.4,192.88,192.77,3.36144467]
[1755177763323,0.4,192.88,192.74,3.36144467]
[1755177763524,26.0,192.87,192.73,3.361445]
[1755177763849,0.4,192.86,192.73,3.361445]
[1755177764047,26.0,192.82,192.73,3.361445]
[1755177764227,0.4,192.81,192.73,3.361445]
[1755177764558,26.4,192.85,192.76,3.36144467]
[1755177764740,26.0,192.81,192.77,0.14216157]
[1755177764940,26.4,192.81,192.77,0.14216157]
[1755177765150,26.4,192.81,192.77,15.24837714]
[1755177765324,26.0,192.81,192.77,15.24837714]
[1755177765728,0.4,192.8,192.71,15.10621557]
[1755177765938,0.4,192.8,192.68,3.39144467]
[1755177766149,0.4,192.8,192.71,3.36144467]
[1755177766448,26.0,192.77,192.69,3.36144467]
[1755177766631,26.0,192.77,192.72,3.36144467]
[1755177766834,26.0,192.73,192.68,0.03]
[1755177767036,0.4,192.72,192.68,0.03]
[1755177767437,26.0,192.73,192.68,3.39144467]
[1755177767828,0.4,192.72,192.68,0.03]
[1755177768160,26.0,192.73,192.68,0.03]
[1755177768459,0.4,192.72,192.68,0.03]
[1755177768630,26.0,192.73,192.68,0.03]
[1755177768954,4.66973292,192.74,192.72,0.14216157]
[1755177769154,26.0,192.77,192.72,0.14216157]
[1755177769155,4.66915933,192.76,192.72,0.14216157]
[1755177769356,12.07060172,192.8,192.74,15.24837714]
[1755177769357,4.66829192,192.79,192.74,15.24837714]
[1755177769530,4.66829192,192.79,192.74,18.60982181]
[1755177769854,4.66829192,192.79,192.74,0.14216157]
[1755177769855,26.0,192.76,192.74,0.14216157]
[1755177770558,30.66829192,192.79,192.74,0.14216157]
[1755177770760,30.66829192,192.79,192.76,15.24837714]
[1755177770937,11.6688284,192.83,192.79,0.14216157]
[1755177770938,4.66732354,192.83,192.79,0.14216157]
[1755177771137,4.66732354,192.83,192.8,0.66]
[1755177771347,0.06,192.84,192.83,18.46766024]
[1755177771751,0.06,192.86,192.85,18.46766024]
[1755177772061,0.14216157,192.98,192.93,18.46766024]
[1755177772448,0.52,193.03,192.93,18.46766024]
[1755177772449,4.8051324,193.01,192.93,3.87976737]
[1755177772756,0.14216157,192.97,192.93,3.36144467]
[1755177773059,0.14216157,192.97,192.96,18.46766024]
[1755177773665,0.14216157,192.97,192.95,15.10621557]
[1755177774152,0.14216157,192.97,192.96,18.98590236]
[1755177774740,0.14216157,192.99,192.97,15.10621557]
[1755177774955,0.14216157,192.99,192.98,18.46766024]
[1755177775670,0.14216157,192.99,192.98,15.10621557]
[1755177776042,0.66216157,192.99,192.91,15.10621557]
[1755177776241,0.66216157,192.99,192.9,3.36144467]
[1755177776547,0.66216157,192.99,192.91,3.36144467]
[1755177776740,4.66442083,192.95,192.91,3.36144467]
[1755177776938,26.0,192.92,192.9,3.36144467]
[1755177777143,26.0,192.92,192.91,15.10621557]
[1755177777340,26.0,192.92,192.89,3.36144467]
[1755177777341,26.0,192.92,192.9,15.10621557]
[1755177777543,26.0,192.92,192.91,3.36144467]
[1755177777761,26.0,192.92,192.9,15.10621557]
[1755177777974,26.0,192.92,192.87,3.36144467]
[1755177778139,26.0,192.92,192.86,3.36144467]
[1755177778338,0.52,192.91,192.8,3.36144467]
[1755177778565,0.52,192.91,192.83,3.36144467]
[1755177778738,0.52,192.91,192.84,15.10621557]
[1755177778938,0.52,192.91,192.86,15.10621557]
[1755177779244,0.52,192.9,192.84,15.10621557]
[1755177779442,0.52,192.9,192.72,0.14216157]
[1755177779670,26.0,192.85,192.77,0.14216157]
[1755177779972,26.0,192.83,192.77,0.14216157]
[1755177780268,26.0,192.83,192.79,0.14216157]
[1755177780436,78.56,192.89,192.79,15.24837714]
[1755177780639,0.52,192.82,192.72,15.10621557]
[1755177780845,26.0,192.77,192.69,3.36144467]
[1755177781073,0.52,192.76,192.69,3.36144467]
[1755177781242,26.0,192.77,192.7,3.36144467]
[1755177781447,3.66533172,192.76,192.66,0.03]
[1755177781636,0.52,192.75,192.69,3.36144467]
[1755177781835,0.52,192.75,192.66,0.03]
[1755177782070,0.52,192.75,192.71,15.10621557]
[1755177782254,26.0,192.77,192.66,0.03]
[1755177782462,0.52,192.74,192.66,0.03]